bitfinex-derivatives/quotes_SOLF0:USTF0_20220106
["timestamp","ask_amount","ask_price","bid_price","bid_amount"]
[1641469441759,27.66479,146.91,146.85,22.44572745]
[1641469442160,31.66479,146.91,146.85,22.44572745]
[1641469442360,37.28179,146.91,146.85,22.44572745]
[1641469442762,4.0,146.9,146.85,22.44572745]
[1641469442961,37.28179,146.91,146.83,22.44572745]
[1641469443161,4.0,146.9,146.83,22.44572745]
[1641469443761,4.0,146.88,146.83,15.68430248]
[1641469443962,10.398,146.88,146.83,1.33877493]
[1641469444162,4.0,146.87,146.83,1.33877493]
[1641469444762,6.398,146.88,146.83,1.33877493]
[1641469445163,10.398,146.88,146.83,1.33877493]
[1641469445362,27.66479,146.86,146.83,1.33877493]
[1641469445764,27.66479,146.86,146.79,14.34552755]
[1641469446563,4.0,146.85,146.79,14.34552755]
[1641469446763,31.66479,146.86,146.79,14.34552755]
[1641469446964,27.66479,146.86,146.78,14.34552755]
[1641469448368,4.0,146.85,146.78,14.34552755]
[1641469448568,4.0,146.84,146.78,14.34552755]
[1641469449067,10.80712025,146.84,146.78,14.34552755]
[1641469449467,27.66479,146.8,146.78,14.34552755]
[1641469450270,34.42079,146.8,146.74,14.34552755]
[1641469451569,27.66479,146.8,146.74,14.34552755]
[1641469452769,6.80712025,146.84,146.74,14.34552755]
[1641469452969,27.66479,146.86,146.74,19.92052755]
[1641469453371,55.32958,146.86,146.74,19.92052755]
[1641469453571,59.32958,146.86,146.74,19.92052755]
[1641469453771,4.0,146.84,146.74,53.62272755]
[1641469454873,4.0,146.83,146.74,53.62272755]
[1641469455073,4.0,146.82,146.74,53.62272755]
[1641469455273,4.0,146.82,146.75,22.44521201]
[1641469455474,27.66479,146.81,146.75,22.44521201]
[1641469455673,31.66479,146.81,146.75,22.44521201]
[1641469455974,37.82579,146.81,146.75,22.44521201]
[1641469456173,4.0,146.8,146.75,1.33877493]
[1641469456374,37.82579,146.81,146.75,1.33877493]
[1641469457175,37.82579,146.81,146.72,14.34552755]
[1641469457374,65.49058,146.81,146.72,14.34552755]
[1641469457575,6.161,146.81,146.72,14.34552755]
[1641469457777,10.80781537,146.83,146.72,14.34552755]
[1641469458074,10.80781537,146.83,146.72,7.54277493]
[1641469458275,4.0,146.82,146.72,7.54277493]
[1641469459277,4.0,146.82,146.73,1.33877493]
[1641469459480,27.66479,146.8,146.73,1.33877493]
[1641469460582,27.66479,146.8,146.72,1.33877493]
[1641469461181,31.66479,146.8,146.72,1.33877493]
[1641469461381,27.66479,146.8,146.72,1.33877493]
[1641469463283,31.66479,146.8,146.72,1.33877493]
[1641469463482,27.66479,146.77,146.72,1.33877493]
[1641469464784,27.66479,146.77,146.7,1.33877493]
[1641469465683,27.66479,146.77,146.7,14.34552755]
[1641469466283,27.66479,146.8,146.7,14.34552755]
[1641469466483,27.66479,146.8,146.72,14.34552755]
[1641469468183,82.1474,146.88,146.74,4.0]
[1641469468383,10.04,146.88,146.74,9.294]
[1641469468586,10.04,146.88,146.75,4.0]
[1641469468785,21.15056328,146.89,146.74,9.294]
[1641469468984,25.15056328,146.89,146.75,32.288]
[1641469469387,4.0,146.87,146.75,32.288]
[1641469469685,27.66479,146.85,146.75,32.288]
[1641469470285,27.66479,146.85,146.77,14.34552755]
[1641469470486,34.39879,146.85,146.77,14.34552755]
[1641469471387,6.80735194,146.84,146.76,22.42554378]
[1641469471687,27.66479,146.81,146.76,22.42554378]
[1641469471886,32.07979,146.81,146.76,22.42554378]
[1641469473087,32.07979,146.81,146.73,38.02503986]
[1641469473088,4.0,146.79,146.73,22.42554378]
[1641469473287,36.07979,146.81,146.73,22.42554378]
[1641469473487,27.66479,146.76,146.73,22.42554378]
[1641469473690,33.96379,146.76,146.73,22.42554378]
[1641469474089,33.96379,146.76,146.71,14.34552755]
[1641469476190,33.96379,146.76,146.7,15.68430248]
[1641469477195,33.96379,146.76,146.7,14.34552755]
[1641469479396,4.0,146.74,146.7,14.34552755]
[1641469479695,4.0,146.74,146.69,1.33877493]
[1641469479696,27.66479,146.71,146.69,15.68430248]
[1641469479895,32.27579,146.71,146.69,15.68430248]
[1641469480098,4.611,146.71,146.69,15.68430248]
[1641469480902,4.611,146.71,146.67,14.34552755]
[1641469481503,59.32958,146.68,146.64,57.31857989]
[1641469481701,60.16358,146.68,146.64,57.31857989]
[1641469482103,60.16358,146.68,146.64,38.02503986]
[1641469482404,4.0,146.67,146.59,38.02503986]
[1641469483604,27.66479,146.65,146.59,38.02503986]
[1641469483805,32.55979,146.65,146.58,46.12164897]
[1641469485009,32.55979,146.65,146.58,8.09660911]
[1641469485305,36.55979,146.65,146.58,8.09660911]
[1641469485505,32.55979,146.65,146.58,8.09660911]
[1641469485905,4.0,146.64,146.58,8.09660911]
[1641469486106,4.0,146.63,146.58,8.09660911]
[1641469486506,4.0,146.64,146.58,8.09660911]
[1641469486706,36.55979,146.65,146.58,8.09660911]
[1641469486907,4.0,146.64,146.58,8.09660911]
[1641469487306,32.55979,146.65,146.58,8.09660911]
[1641469487708,27.66479,146.62,146.58,8.09660911]
[1641469488306,34.69479,146.62,146.58,8.09660911]
[1641469488506,34.69479,146.62,146.58,1.33648358]
[1641469488912,27.66479,146.65,146.58,1.33648358]
[1641469489108,27.66479,146.65,146.58,6.37748358]
[1641469489307,27.2609555,146.7,146.58,6.37748358]
[1641469489707,27.66479,146.68,146.58,34.04227358]
[1641469489909,27.66479,146.68,146.58,32.70579]
[1641469490807,27.66479,146.68,146.59,1.33648358]
[1641469491207,34.47933223,146.68,146.59,1.33648358]
[1641469491408,38.47933223,146.68,146.59,1.33648358]
[1641469491610,4.0,146.67,146.59,1.33648358]
[1641469491810,27.66479,146.62,146.59,1.33648358]
[1641469492010,33.86979,146.62,146.59,1.33648358]
[1641469492711,33.86979,146.62,146.56,1.33648358]
[1641469494912,37.86979,146.62,146.56,1.33648358]
[1641469495114,37.86979,146.62,146.54,1.33648358]
[1641469495414,33.86979,146.62,146.54,1.33648358]
[1641469495714,27.66479,146.59,146.54,1.33648358]
[1641469495913,33.30279,146.59,146.54,1.33648358]
[1641469496513,33.30279,146.59,146.54,5.33648358]
[1641469496713,33.30279,146.59,146.54,1.33648358]
[1641469497713,27.66479,146.56,146.54,1.33648358]
[1641469497917,32.99579,146.56,146.54,1.33648358]
[1641469498314,5.331,146.56,146.54,1.33648358]
[1641469498914,27.66479,146.59,146.54,1.33648358]
[1641469499316,27.66479,146.59,146.49,12.0464367]
[1641469499817,27.66479,146.59,146.51,27.66479]
[1641469500116,31.66479,146.63,146.51,27.66479]
[1641469500318,27.66479,146.63,146.51,27.66479]
[1641469500518,27.66479,146.63,146.51,33.85479]
[1641469501219,68.7635,146.64,146.52,8.0464367]
[1641469501419,4.0,146.64,146.53,33.8588]
[1641469501819,27.66479,146.63,146.53,33.8588]
[1641469502219,27.66479,146.63,146.54,1.33648358]
[1641469504325,27.66479,146.63,146.57,4.77316332]
[1641469505122,27.66479,146.63,146.56,4.77316332]
[1641469506123,27.66479,146.63,146.58,4.77316332]
[1641469506725,27.66479,146.63,146.58,11.05716332]
[1641469507126,4.77316332,146.68,146.58,11.05716332]
[1641469507525,4.77316332,146.67,146.59,4.77316332]
[1641469507726,4.77316332,146.67,146.6,32.8271]
[1641469507927,4.77316332,146.67,146.61,27.66479]
[1641469508128,4.77316332,146.67,146.61,33.32279]
[1641469508327,4.77316332,146.67,146.61,37.32279]
[1641469508529,32.43795332,146.72,146.64,4.77316332]
[1641469508728,32.43795332,146.72,146.64,10.42516332]
[1641469509429,32.43795332,146.72,146.64,14.42516332]
[1641469509629,32.43795332,146.72,146.64,10.42516332]
[1641469509829,27.66479,146.72,146.66,32.43795332]
[1641469510030,27.66479,146.72,146.68,4.0]
[1641469510231,4.77316332,146.73,146.69,4.0]
[1641469510532,27.66479,146.76,146.69,4.0]
[1641469510733,38.02503986,146.79,146.7,4.0]
[1641469511133,63.63532933,146.84,146.7,4.0]
[1641469511134,10.80735194,146.84,146.7,4.0]
[1641469511532,6.80735194,146.84,146.7,4.0]
[1641469511933,27.66479,146.81,146.73,27.66479]
[1641469512734,27.66479,146.81,146.74,4.0]
[1641469512936,3.4472666,146.83,146.75,4.0]
[1641469513134,3.4472666,146.83,146.75,10.949]
[1641469513336,3.4472666,146.83,146.76,4.0]
[1641469513534,27.22384809,146.9,146.76,4.0]
[1641469513535,14.34255376,146.86,146.76,4.0]
[1641469513736,14.34255376,146.86,146.77,4.0]
[1641469513935,14.34255376,146.86,146.85,27.66479]
[1641469514135,14.34255376,146.86,146.85,32.48779]
[1641469514735,3.44453171,146.89,146.85,32.48779]
[1641469515936,14.34255376,146.9,146.85,32.48779]
[1641469516136,6.80341531,146.92,146.85,32.48779]
[1641469516738,14.34255376,146.94,146.88,4.0]
[1641469516937,14.34255376,146.94,146.88,9.155]
[1641469517138,4.39405705,146.94,146.9,4.0]
[1641469517337,4.39405705,146.98,146.9,4.0]
[1641469517538,4.39405705,146.98,146.89,4.0]
[1641469517937,4.39405705,146.98,146.97,27.66479]
[1641469518137,4.39405705,146.98,146.97,33.63979]
[1641469518338,38.02503986,147.01,146.97,33.63979]
[1641469518538,3.41870056,147.01,146.97,33.63979]
[1641469519340,3.41870056,147.01,146.97,27.66479]
[1641469519741,7.41870056,147.01,146.97,27.66479]
[1641469520041,3.41870056,147.01,146.94,27.66479]
[1641469520342,27.66479,147.02,146.94,27.66479]
[1641469521245,27.66479,147.02,146.94,33.34179]
[1641469521743,72.22534847,147.08,146.96,4.0]
[1641469521943,6.79624847,147.08,146.98,4.0]
[1641469522146,38.02503986,147.09,147.01,27.66479]
[1641469522345,3.84715398,147.07,147.01,33.92079]
[1641469522843,3.84715398,147.08,147.01,33.92079]
[1641469523243,3.84715398,147.1,147.01,33.92079]
[1641469524048,7.84715398,147.1,147.01,33.92079]
[1641469524344,6.79624847,147.08,147.01,27.66479]
[1641469525146,3.84715398,147.07,147.01,27.66479]
[1641469525745,9.63715398,147.07,147.01,27.66479]
[1641469526548,3.84715398,147.06,147.01,27.66479]
[1641469527246,3.84715398,147.06,146.96,34.1702]
[1641469527247,10.79809653,147.04,146.96,34.1702]
[1641469527447,10.79809653,147.04,146.95,65.28]
[1641469527847,3.84715398,147.03,146.95,65.28]
[1641469528046,3.84715398,147.03,146.97,27.66479]
[1641469528247,3.84715398,147.03,146.97,31.66479]
[1641469528447,3.84715398,147.03,146.97,27.66479]
[1641469528646,6.79671039,147.07,146.97,36.41879]
[1641469528847,6.79671039,147.07,146.99,4.0]
[1641469529447,6.79463224,147.11,146.99,4.0]
[1641469530052,3.84631038,147.1,146.98,35.8383]
[1641469530250,3.84631038,147.1,147.04,27.66479]
[1641469531251,7.84631038,147.1,147.04,27.66479]
[1641469531451,3.84631038,147.1,147.04,32.35479]
[1641469531850,7.84631038,147.1,147.04,32.35479]
[1641469532051,6.79624847,147.08,147.04,4.69]
[1641469532450,6.79624847,147.08,147.02,27.66479]
[1641469532852,3.84631038,147.07,146.98,27.66479]
[1641469533050,7.84631038,147.07,146.98,27.66479]
[1641469533252,4.0,147.06,146.98,27.66479]
[1641469533452,12.66931038,147.07,146.98,27.66479]
[1641469533653,3.84631038,147.05,146.98,27.66479]
[1641469533852,4.0,147.03,146.98,27.66479]
[1641469534053,6.945,147.03,146.98,27.66479]
[1641469534255,3.84631038,147.02,146.98,27.66479]
[1641469535052,7.84631038,147.05,146.98,27.66479]
[1641469535452,3.84631038,147.04,146.98,27.66479]
[1641469535853,3.84631038,147.05,146.98,27.66479]
[1641469536054,6.79786547,147.04,146.98,27.66479]
[1641469536656,3.84631038,147.03,146.98,27.66479]
[1641469537458,38.02503986,147.11,146.98,31.66479]
[1641469537658,38.02503986,147.11,146.98,37.86979]
[1641469537859,4.0,147.1,146.98,33.86979]
[1641469538158,4.0,147.1,147.02,27.66479]
[1641469538961,7.25234941,147.09,147.03,0.76932046]
[1641469539461,3.8466023,147.08,147.03,0.76932046]
[1641469539661,7.25234941,147.08,147.03,0.76932046]
[1641469540261,7.8466023,147.07,147.03,0.76932046]
[1641469540660,3.8466023,147.06,146.98,27.66479]
[1641469540861,9.3296023,147.06,146.98,27.66479]
[1641469541462,3.8466023,147.05,146.98,27.66479]
[1641469542065,3.42929788,147.04,146.98,27.66479]
[1641469543068,3.42929788,147.04,146.99,4.0]
[1641469543264,3.42929788,147.04,146.99,4.495]
[1641469543463,3.42929788,147.04,146.99,8.495]
[1641469543765,3.42929788,147.07,146.99,8.495]
[1641469543966,3.42929788,147.07,147.0,4.0]
[1641469544264,3.42929788,147.07,147.02,27.66479]
[1641469544865,4.0,147.09,147.02,27.66479]
[1641469545063,4.0,147.1,147.02,27.66479]
[1641469545265,4.0,147.07,147.02,27.66479]
[1641469545864,3.84636632,147.06,147.02,27.66479]
[1641469546165,7.2756642,147.06,147.02,27.66479]
[1641469546366,3.42929788,147.06,147.03,0.76932643]
[1641469546767,7.42929788,147.06,147.03,0.76932643]
[1641469547169,7.42929788,147.06,146.98,27.66479]
[1641469547170,4.0,147.04,146.98,27.66479]
[1641469547367,7.84723432,147.05,146.98,27.66479]
[1641469547568,4.0,147.05,146.98,27.66479]
[1641469547967,14.36393548,147.02,146.98,27.66479]
[1641469549371,4.0,147.01,146.97,27.66479]
[1641469549569,5.301,147.02,146.94,34.0686]
[1641469550370,14.36393548,147.0,146.94,34.0686]
[1641469550571,14.36393548,147.0,146.94,40.6776]
[1641469551175,14.36393548,147.0,146.94,6.609]
[1641469554075,14.36393548,147.0,146.98,4.0]
[1641469554375,14.36393548,147.03,146.99,27.66479]
[1641469555977,14.36393548,147.04,146.99,27.66479]
[1641469558881,14.36393548,147.03,146.99,27.66479]
[1641469559783,18.36393548,147.03,146.95,60.57679]
[1641469559983,14.36393548,147.03,146.95,60.57679]
[1641469560186,14.36393548,147.02,146.95,60.57679]
[1641469561086,14.36393548,147.0,146.95,60.57679]
[1641469561283,14.36393548,147.0,146.95,27.66479]
[1641469561683,4.0,146.97,146.89,14.36393548]
[1641469561883,11.082,146.97,146.89,14.36393548]
[1641469562083,7.082,146.97,146.9,0.76973583]
[1641469562885,17.79323336,146.96,146.9,0.76973583]
[1641469563487,17.79323336,146.96,146.89,0.76973583]
[1641469563886,3.42929788,146.96,146.89,0.76973583]
[1641469565890,9.33629788,146.96,146.89,0.76973583]
[1641469566089,13.33629788,146.96,146.89,0.76973583]
[1641469566291,4.0,146.95,146.89,0.76973583]
[1641469566490,4.0,146.94,146.89,0.76973583]
[1641469566890,35.09408788,146.95,146.89,0.76973583]
[1641469567090,3.42929788,146.95,146.89,0.76973583]
[1641469567290,14.36393548,146.97,146.89,7.26473583]
[1641469567490,14.36393548,146.96,146.89,7.26473583]
[1641469567892,14.36393548,146.96,146.9,0.76973583]
[1641469568791,14.36393548,146.96,146.92,27.66479]
[1641469568991,14.36393548,146.96,146.92,33.87879]
[1641469569193,3.44167548,146.97,146.93,0.76973583]
[1641469570196,14.36393548,146.99,146.93,0.76973583]
[1641469570396,17.80561096,147.02,146.93,0.76973583]
[1641469570595,17.80561096,147.02,146.96,4.0]
[1641469570794,17.80561096,147.02,147.01,27.66479]
[1641469570992,17.80561096,147.02,147.01,33.02979]
[1641469571396,17.80561096,147.02,147.01,33.79952583]
[1641469571994,38.02503986,147.06,147.01,33.79952583]
[1641469572593,14.33290504,147.04,147.02,0.76973583]
[1641469573495,4.0,147.1,147.02,0.76973583]
[1641469573895,12.34219217,147.11,147.02,0.76973583]
[1641469574095,12.34219217,147.11,147.02,4.76973583]
[1641469574296,12.34219217,147.11,147.02,0.76973583]
[1641469574495,50.36723203,147.11,147.02,0.76973583]
[1641469574896,50.36723203,147.11,147.05,27.66479]
[1641469575095,50.36723203,147.11,147.05,34.18179]
[1641469575296,50.36723203,147.11,147.06,0.76973583]
[1641469575897,6.79440141,147.12,147.06,0.76973583]
[1641469577299,6.79440141,147.12,147.06,4.76973583]
[1641469577700,6.79440141,147.12,147.07,0.76973583]
[1641469577903,12.34219217,147.14,147.07,7.24473583]
[1641469578499,12.34219217,147.15,147.07,7.24473583]
[1641469578699,12.34219217,147.15,147.08,0.76973583]
[1641469580701,12.34219217,147.15,147.08,4.76973583]
[1641469580900,27.66479,147.16,147.08,4.76973583]
[1641469580901,27.66479,147.16,147.09,27.66479]
[1641469581301,27.66479,147.16,147.1,0.76973583]
[1641469582104,27.66479,147.16,147.11,4.0]
[1641469582306,38.02503986,147.19,147.14,4.0]
[1641469582504,38.02503986,147.19,147.14,7.125]
[1641469582705,3.986e-05,147.19,147.14,7.125]
[1641469582910,56.82797739,147.23,147.18,55.32958]
[1641469583107,6.78702321,147.28,147.18,61.00158]
[1641469583108,38.03802512,147.24,147.18,61.00158]
[1641469583409,38.03802512,147.24,147.19,0.76973583]
[1641469583607,6.78909671,147.23,147.19,0.76973583]
[1641469584307,4.0,147.22,147.1,35.5758]
[1641469584509,6.78909671,147.23,147.11,4.0]
[1641469585114,6.78909671,147.23,147.16,27.66479]
[1641469585712,6.78909671,147.23,147.17,0.76861794]
[1641469586815,6.78909671,147.23,147.16,26.12755412]
[1641469587013,6.78909671,147.23,147.17,5.806]
[1641469587213,16.28037048,147.25,147.17,5.806]
[1641469587412,40.41604986,147.25,147.17,5.806]
[1641469587613,36.41604986,147.25,147.17,5.806]
[1641469587813,29.62764446,147.25,147.17,5.806]
[1641469588213,4.7375239,147.2,147.17,5.806]
[1641469588414,4.7375239,147.2,147.18,0.76852619]
[1641469589215,4.7375239,147.21,147.18,0.76852619]
[1641469589816,4.7375239,147.21,147.17,0.76852619]
[1641469590817,4.7375239,147.22,147.17,0.76852619]
[1641469591019,4.7375239,147.22,147.17,8.02952619]
[1641469591215,4.7375239,147.22,147.19,27.66479]
[1641469591818,4.7375239,147.22,147.2,0.76852619]
[1641469592018,4.7375239,147.22,147.2,6.68052619]
[1641469592818,4.7375239,147.22,147.21,0.76852619]
[1641469594723,4.7375239,147.23,147.21,0.76852619]
[1641469595225,4.7375239,147.23,147.22,27.66479]
[1641469595626,4.7375239,147.24,147.22,28.43331619]
[1641469596024,4.7375239,147.24,147.23,0.76852619]
[1641469596227,4.7375239,147.24,147.23,6.17352619]
[1641469596924,4.7375239,147.24,147.23,5.405]
[1641469597126,4.7375239,147.25,147.23,2.619e-05]
[1641469597326,4.7375239,147.25,147.19,27.66479]
[1641469598127,4.7375239,147.21,147.2,0.76847946]
[1641469599227,4.7375239,147.22,147.2,28.43326946]
[1641469599827,4.7375239,147.22,147.21,0.76847946]
[1641469600229,4.0,147.28,147.21,0.76847946]
[1641469600528,36.40767515,147.29,147.21,0.76847946]
[1641469600730,3.84232042,147.27,147.21,0.76847946]
[1641469601230,3.84232042,147.27,147.2,20.74918776]
[1641469601432,3.84232042,147.28,147.2,20.74918776]
[1641469601730,16.1061357,147.28,147.2,20.74918776]
[1641469601930,16.1061357,147.28,147.19,27.66479]
[1641469602130,6.78932718,147.23,147.11,64.2894]
[1641469602331,4.0,147.18,147.11,32.9667]
[1641469602530,6.317,147.18,147.11,32.9667]
[1641469603333,6.317,147.18,147.11,60.63149]
[1641469603533,4.75939267,147.2,147.11,60.63149]
[1641469604137,4.75939267,147.17,147.11,60.63149]
[1641469604738,9.16339267,147.17,147.11,60.63149]
[1641469605036,9.16339267,147.17,147.11,27.66479]
[1641469605237,4.75939267,147.15,147.11,27.66479]
[1641469606736,4.75939267,147.14,147.11,27.66479]
[1641469607537,4.75939267,147.14,147.09,27.66479]
[1641469608437,8.75939267,147.14,147.09,27.66479]
[1641469608638,8.75939267,147.14,147.06,38.98253501]
[1641469608839,4.75939267,147.14,147.06,38.98253501]
[1641469609339,4.75939267,147.11,147.1,4.0]
[1641469609538,14.27817801,147.14,147.1,61.88958]
[1641469610440,14.27817801,147.16,147.1,61.88958]
[1641469610640,14.27817801,147.16,147.1,65.88958]
[1641469610843,14.27817801,147.16,147.11,4.0]
[1641469611045,14.27817801,147.16,147.12,4.0]
[1641469611247,7.801e-05,147.16,147.15,4.0]
[1641469611448,50.38019715,147.2,147.15,64.96558]
[1641469611449,14.33829103,147.18,147.15,64.96558]
[1641469611645,9.103e-05,147.18,147.16,4.0]
[1641469612046,0.00010631,147.2,147.16,4.0]
[1641469612249,0.00010631,147.2,147.18,4.0]
[1641469612448,56.82797739,147.26,147.18,9.85]
[1641469612449,38.11638187,147.26,147.18,9.85]
[1641469613550,38.11638187,147.26,147.21,27.66479]
[1641469613752,38.11638187,147.26,147.21,33.87079]
[1641469615151,38.11638187,147.27,147.21,33.87079]
[1641469616853,41.55043039,147.28,147.21,33.87079]
[1641469617453,45.55043039,147.28,147.21,27.66479]
[1641469617650,4.0,147.27,147.21,27.66479]
[1641469618051,4.0,147.27,147.2,27.66479]
[1641469618252,8.637,147.27,147.2,27.66479]
[1641469618452,3.43404852,147.26,147.2,27.66479]
[1641469619261,41.55043039,147.26,147.2,27.66479]
[1641469620257,3.43404852,147.26,147.2,27.66479]
[1641469620757,38.11638187,147.26,147.2,27.66479]
[1641469621760,41.55043039,147.26,147.2,27.66479]
[1641469623061,3.43404852,147.26,147.2,27.66479]
[1641469623362,41.55043039,147.27,147.2,27.66479]
[1641469625066,4.0,147.26,147.2,27.66479]
[1641469625265,9.258,147.26,147.2,27.66479]
[1641469625666,3.43404852,147.25,147.2,27.66479]
[1641469626068,7.43404852,147.25,147.2,27.66479]
[1641469626267,3.43404852,147.25,147.2,27.66479]
[1641469626467,8.83704852,147.25,147.15,27.66479]
[1641469626668,12.83704852,147.25,147.15,27.66479]
[1641469627370,4.0,147.24,147.15,27.66479]
[1641469627571,7.43404852,147.24,147.15,27.66479]
[1641469627769,35.09883852,147.24,147.15,27.66479]
[1641469627969,31.09883852,147.24,147.15,27.66479]
[1641469628569,3.43404852,147.23,147.15,27.66479]
[1641469628969,4.0,147.22,147.15,27.66479]
[1641469629168,3.43404852,147.23,147.15,27.66479]
[1641469629169,7.43404852,147.23,147.15,27.66479]
[1641469629370,3.43404852,147.23,147.15,27.66479]
[1641469632175,3.43404852,147.23,147.16,4.0]
[1641469632777,38.11638187,147.25,147.16,4.0]
[1641469632778,15.76133744,147.25,147.16,4.0]
[1641469632976,15.76133744,147.25,147.17,4.0]
[1641469633177,15.76133744,147.25,147.17,7.074]
[1641469633378,15.76133744,147.25,147.17,11.074]
[1641469633577,15.76133744,147.25,147.18,4.0]
[1641469633778,3.43404852,147.27,147.21,27.66479]
[1641469633978,3.43404852,147.27,147.21,32.32579]
[1641469634579,15.76133744,147.28,147.21,4.661]
[1641469634782,4.0,147.25,147.21,4.661]
[1641469634979,4.0,147.25,147.15,59.48739]
[1641469635379,3.43404852,147.24,147.15,59.48739]
[1641469637083,3.43404852,147.25,147.15,59.48739]
[1641469637285,15.76133744,147.25,147.15,59.48739]
[1641469637684,15.76133744,147.25,147.18,27.66479]
[1641469638085,3.43404852,147.25,147.18,27.66479]
[1641469638886,53.87771931,147.25,147.18,27.66479]
[1641469639487,53.87771931,147.25,147.18,32.03679]
[1641469640691,38.11638187,147.25,147.18,32.03679]
[1641469641391,41.55043039,147.25,147.18,32.03679]
[1641469641992,41.55043039,147.25,147.18,36.03679]
[1641469642194,41.55043039,147.25,147.18,42.82082039]
[1641469642395,14.3753718,147.22,147.18,32.03679]
[1641469643292,14.3753718,147.24,147.18,32.03679]
[1641469643692,14.3753718,147.24,147.21,27.66479]
[1641469643893,14.3753718,147.24,147.21,34.79179]
[1641469644093,14.3753718,147.25,147.21,34.79179]
[1641469645893,14.3753718,147.25,147.21,62.45658]
[1641469646093,14.3753718,147.27,147.21,62.45658]
[1641469647395,14.3753718,147.28,147.21,62.45658]
[1641469648395,14.3753718,147.27,147.21,62.45658]
[1641469649195,14.3753718,147.28,147.21,62.45658]
[1641469650198,4.0,147.27,147.21,55.32958]
[1641469650496,10.951,147.27,147.21,55.32958]
[1641469651096,4.0,147.26,147.21,55.32958]
[1641469651497,21.80942032,147.26,147.21,55.32958]
[1641469651696,21.80942032,147.26,147.21,27.66479]
[1641469652098,21.80942032,147.26,147.17,27.66479]
[1641469652299,17.80942032,147.25,147.17,27.66479]
[1641469653099,14.3753718,147.23,147.17,27.66479]
[1641469656805,14.3753718,147.22,147.17,27.66479]
[1641469657606,14.3753718,147.24,147.17,27.66479]
[1641469657807,14.3753718,147.24,147.2,27.66479]
[1641469659809,14.3753718,147.23,147.2,27.66479]
[1641469660412,14.3753718,147.23,147.15,31.8226]
[1641469661214,20.5683718,147.23,147.15,31.8226]
[1641469661713,20.5683718,147.23,147.16,1.34997936]
[1641469661913,20.5683718,147.23,147.17,27.66479]
[1641469662115,4.0,147.18,147.16,1.34997936]
[1641469662314,4.0,147.17,147.16,1.34997936]
[1641469662515,4.0,147.17,147.11,14.3753718]
[1641469662914,4.921,147.18,147.11,14.3753718]
[1641469662915,4.0,147.16,147.11,14.3753718]
[1641469663113,4.0,147.13,147.11,14.3753718]
[1641469663314,10.558,147.13,147.11,14.3753718]
[1641469663714,10.558,147.13,147.11,7.18e-05]
[1641469663916,10.558,147.13,147.08,1.34954543]
[1641469663917,4.0,147.12,147.08,1.34954543]
[1641469664115,10.558,147.13,147.08,1.34954543]
[1641469664315,4.0,147.12,147.08,1.34954543]
[1641469664515,10.558,147.13,147.08,1.34954543]
[1641469664916,4.0,147.12,147.08,1.34954543]
[1641469665114,4.0,147.12,147.06,1.34954543]
[1641469665317,2.66677756,147.11,147.06,1.34954543]
[1641469666017,2.66677756,147.12,147.06,1.34954543]
[1641469666218,2.66677756,147.11,147.06,1.34954543]
[1641469666417,2.66677756,147.12,147.06,1.34954543]
[1641469666618,6.558,147.13,147.07,1.33322244]
[1641469666818,9.22477756,147.13,147.07,1.33322244]
[1641469667218,27.66479,147.15,147.05,27.66479]
[1641469667419,38.11638187,147.19,147.14,5.33322244]
[1641469667719,44.84435926,147.24,147.18,12.11656256]
[1641469667918,31.34435926,147.27,147.23,56.66280244]
[1641469668118,31.34435926,147.27,147.26,1.33322244]
[1641469668319,31.34435926,147.27,147.26,7.33522244]
[1641469668918,2.66677756,147.27,147.26,6.002]
[1641469669120,6.78472081,147.33,147.26,6.002]
[1641469669319,6.78472081,147.33,147.23,55.32958]
[1641469669519,6.78472081,147.33,147.24,1.33322244]
[1641469669719,6.78472081,147.33,147.23,55.32958]
[1641469669920,2.66677756,147.32,147.23,56.66280244]
[1641469670119,4.7660491,147.27,147.23,56.66280244]
[1641469670525,4.7660491,147.27,147.24,1.33322244]
[1641469671022,4.7660491,147.27,147.23,55.32958]
[1641469671422,4.7660491,147.27,147.26,1.33322244]
[1641469671620,4.7660491,147.27,147.26,7.06822244]
[1641469671821,4.7660491,147.28,147.26,7.06822244]